bitfinex/quotes_ETHUSD_20240719
["timestamp","ask_amount","ask_price","bid_price","bid_amount"]
[1721384743897,3.82187984,3406.9,3406.3,2.93566]
[1721384743898,1.23325076,3406.6,3406.3,2.93566]
[1721384744793,1.23325076,3406.5,3406.3,2.93566]
[1721384745400,1.23325076,3406.5,3405.9,2.3434]
[1721384745401,1.23325076,3406.5,3405.9,3.99307]
[1721384745556,1.23325076,3406.4,3406.0,5.93599]
[1721384747162,1.23325076,3406.4,3406.2,2.93582]
[1721384747391,1.23325076,3406.5,3406.1,3.99283]
[1721384747746,1.23325076,3406.5,3406.3,1.057]
[1721384747986,1.23325076,3406.6,3406.3,1.057]
[1721384748297,1.23325076,3406.6,3406.3,3.99271]
[1721384749303,1.23325076,3406.6,3406.3,2.93571]
[1721384749462,1.23325076,3406.5,3406.1,3.99283]
[1721384750596,1.23325076,3406.4,3406.1,3.99283]
[1721384750786,1.23325076,3406.5,3406.1,3.99283]
[1721384751176,1.23325076,3406.4,3406.2,2.93581]
[1721384755491,1.23325076,3406.3,3406.2,2.93581]
[1721384755724,1.23325076,3406.4,3406.2,2.93581]
[1721384759427,1.23325076,3406.4,3406.0,3.0]
[1721384759627,1.23325076,3406.3,3405.8,2.93608]
[1721384759836,1.23325076,3406.2,3405.8,2.93608]
[1721384760017,1.23325076,3406.2,3405.9,2.93606]
[1721384760222,1.23325076,3406.1,3405.9,2.93606]
[1721384760634,1.23325076,3406.2,3405.9,2.93606]
[1721384760846,1.23325076,3406.2,3405.9,3.99306]
[1721384763163,1.23325076,3406.2,3406.0,2.93593]
[1721384764628,1.23325076,3406.2,3406.1,2.9359]
[1721384764854,1.23325076,3406.2,3406.1,3.9929]
[1721384765023,1.23325076,3406.3,3406.1,4.66842111]
[1721384765223,1.23325076,3406.5,3406.4,2.93565]
[1721384765424,1.23325076,3406.6,3406.5,2.93556]
[1721384766533,1.23325076,3406.6,3406.4,1.057]
[1721384766732,1.23325076,3406.6,3406.3,2.93573]
[1721384767326,1.23325076,3406.6,3406.4,2.93564]
[1721384769833,1.23325076,3406.6,3406.5,2.93556]
[1721384771463,1.23325076,3406.6,3406.3,2.93573]
[1721384772374,1.23325076,3406.6,3406.4,2.9356]
[1721384773427,1.23325076,3406.6,3406.2,1.057]
[1721384773428,1.23325076,3406.5,3406.3,2.93572]
[1721384773629,1.23325076,3406.5,3406.4,2.93565]
[1721384774389,1.23325076,3406.5,3406.1,2.93587]
[1721384774757,1.23325076,3406.5,3406.2,1.057]
[1721384774960,1.23325076,3406.5,3406.3,2.93567]
[1721384775187,1.23325076,3406.5,3406.4,2.93565]
[1721384775389,1.23325076,3406.6,3406.5,2.93556]
[1721384779609,1.54179754,3406.7,3406.3,5.87133]
[1721384779761,1.23344906,3406.6,3406.3,2.93566]
[1721384780193,1.23344906,3406.5,3406.3,2.93566]
[1721384780780,1.23344906,3406.5,3406.4,2.93565]
[1721384782602,1.23344906,3406.5,3406.2,3.99277]
[1721384782910,1.23344906,3406.5,3406.3,2.93573]
[1721384785694,1.23344906,3406.5,3406.4,2.93565]
[1721384786099,1.54193469,3406.7,3406.5,2.93556]
[1721384786100,1.23344906,3406.6,3406.5,2.93556]
[1721384790180,1.23344906,3406.6,3405.8,2.93615]
[1721384790181,1.81952307,3406.6,3405.9,2.93605]
[1721384790516,1.233655,3406.3,3405.9,2.93605]
[1721384792198,1.233655,3406.3,3406.0,1.057]
[1721384792382,1.233655,3406.3,3406.0,3.99299]
[1721384794727,1.233655,3406.2,3405.8,3.99308]
[1721384795312,1.233655,3406.2,3405.9,2.93607]
[1721384795511,1.233655,3406.3,3406.1,2.93583]
[1721384798333,1.54194444,3406.5,3406.1,2.93583]
[1721384798334,1.233655,3406.4,3406.3,2.93573]
[1721384798493,1.233655,3406.6,3406.5,2.93556]
[1721384798676,1.233655,3406.6,3406.5,3.99256]
[1721384798882,1.233655,3406.7,3406.5,6.92812]
[1721384799704,1.233655,3406.7,3406.6,2.93547]
[1721384811446,5.09315297,3407.5,3406.6,2.93547]
[1721384811447,1.233655,3406.9,3406.8,2.9353]
[1721384811599,1.233655,3407.0,3406.9,2.93521]
[1721384815076,1.233655,3407.2,3407.0,2.93513]
[1721384815226,1.233655,3407.2,3407.0,3.627864]
[1721384815432,1.233655,3407.2,3407.1,2.93504]
[1721384815656,1.233655,3407.3,3407.1,2.93504]
[1721384816153,1.233655,3407.4,3407.1,2.93504]
[1721384817376,1.233655,3407.4,3406.9,6.92737]
[1721384817660,1.233655,3407.4,3406.9,2.93516]
[1721384817661,1.233655,3407.3,3406.9,2.93516]
[1721384818172,1.233655,3407.2,3406.7,2.93536]
[1721384818518,4.168615,3407.2,3406.6,2.93547]
[1721384819500,1.233655,3407.1,3406.6,2.93547]
[1721384819634,2.93496,3407.2,3406.6,2.93547]
[1721384819635,4.168615,3407.2,3406.6,2.93547]
[1721384819835,1.233655,3407.1,3406.6,2.93547]
[1721384821485,5.43942096,3407.2,3406.6,2.93547]
[1721384821648,4.168615,3407.2,3406.6,2.93547]
[1721384822339,4.168615,3407.2,3406.5,1.057]
[1721384822340,1.233655,3407.2,3406.7,2.93538]
[1721384822743,1.233655,3407.2,3406.7,3.99238]
[1721384823783,1.233655,3407.2,3406.8,2.9353]
[1721384827552,3.670455,3407.3,3406.8,2.9353]
[1721384827860,1.233655,3407.2,3406.8,2.9353]
[1721384829450,1.233655,3407.2,3406.7,2.93538]
[1721384832559,1.233655,3407.2,3406.8,2.93529]
[1721384832771,3.670455,3407.3,3406.8,2.93529]
[1721384833285,1.233655,3407.2,3406.8,2.93529]
[1721384833483,3.670455,3407.3,3406.8,2.93529]
[1721384834096,1.233655,3407.2,3406.8,2.93529]
[1721384834310,1.233655,3407.2,3406.6,2.93541]
[1721384834679,1.233655,3407.2,3406.7,2.93537]
[1721384835766,1.233655,3407.2,3406.7,2.93531]
[1721384836001,5.37168,3407.3,3406.7,3.99231]
[1721384836002,6.605335,3407.3,3406.7,3.99231]
[1721384836366,6.605335,3407.3,3406.8,2.93529]
[1721384836609,1.233655,3407.2,3406.8,2.93529]
[1721384841081,1.233655,3407.2,3406.9,2.93521]
[1721384845406,1.233655,3407.1,3406.9,2.93521]
[1721384845980,1.233655,3407.2,3407.1,2.93504]
[1721384848532,1.233655,3407.3,3407.1,2.93504]
[1721384850427,1.233655,3407.2,3407.1,2.93504]
[1721384859453,1.233655,3407.3,3407.2,2.93496]
[1721384859657,1.233655,3407.3,3407.2,5.86992]
[1721384861961,1.233655,3407.4,3407.3,2.93487]
[1721384873583,1.233655,3407.4,3406.9,5.22604]
[1721384873885,2.93523,3406.9,3406.2,2.4851]
[1721384874104,1.23316809,3406.8,3406.2,2.4851]
[1721384874399,1.23316809,3406.7,3406.4,2.93559]
[1721384874617,1.23316809,3406.8,3406.5,3.99256]
[1721384875078,1.23316809,3406.9,3406.5,3.99256]
[1721384875289,1.23316809,3406.9,3406.7,1.057]
[1721384876285,1.23316809,3406.9,3406.7,4.933648]
[1721384878874,1.23316809,3407.0,3406.7,4.933648]
[1721384879077,1.23316809,3406.9,3406.8,2.9353]
[1721384879448,1.23316809,3407.0,3406.8,2.9353]
[1721384880308,1.23316809,3407.1,3406.9,3.99221]
[1721384880899,1.23316809,3407.2,3406.9,3.99221]
[1721384881489,1.23316809,3407.1,3406.9,3.99221]
[1721384881693,1.23316809,3407.2,3406.9,3.99221]
[1721384886792,1.23316809,3407.1,3406.9,2.93521]
[1721384887727,1.23316809,3407.1,3407.0,2.93513]
[1721384887899,1.23316809,3407.2,3407.0,2.93513]
[1721384888224,1.23316809,3407.2,3407.1,2.93504]
[1721384888686,1.23316809,3407.3,3407.1,2.93504]
[1721384888892,1.23316809,3407.3,3406.9,2.93521]
[1721384888893,1.23316809,3407.2,3406.9,2.93521]
[1721384889092,1.23316809,3407.2,3407.0,2.93511]
[1721384889425,1.23316809,3407.3,3407.0,2.93511]
[1721384890001,1.23316809,3407.3,3407.1,5.27654]
[1721384890328,1.23316809,3407.3,3407.2,2.93495]
[1721384890531,1.23316809,3407.4,3407.2,2.93495]
[1721384890894,1.23316809,3407.4,3407.3,6.92674]
[1721384891232,1.23316809,3407.7,3407.5,2.9347]
[1721384891549,1.23316809,3407.8,3407.5,2.9347]
[1721384892136,1.23316809,3407.7,3407.5,2.9347]
[1721384893110,1.23316809,3407.7,3407.4,2.93473]
[1721384893306,1.23316809,3407.6,3407.5,2.9347]
[1721384893931,1.23316809,3407.6,3407.3,2.9348]
[1721384894112,1.23316809,3407.6,3407.3,3.861631]
[1721384894299,1.23316809,3407.7,3407.6,2.93461]
[1721384895029,1.54030454,3407.9,3407.7,2.93447]
[1721384895030,1.23316809,3407.9,3407.7,2.93447]
[1721384895231,1.23316809,3408.0,3407.7,2.93447]
[1721384895530,1.23316809,3408.1,3407.7,2.93447]
[1721384895996,1.23316809,3408.0,3407.7,2.93447]
[1721384897230,1.23316809,3408.1,3407.7,2.93447]
[1721384897432,1.23316809,3408.3,3408.0,3.99118]
[1721384897637,1.23316809,3408.3,3408.1,2.93414]
[1721384897934,1.23316809,3408.5,3408.1,2.93414]
[1721384898301,1.23316809,3408.6,3408.1,2.93414]
[1721384898595,1.23316809,3408.5,3408.1,2.93414]
[1721384899125,1.23316809,3408.6,3408.1,2.93414]
[1721384900032,1.23316809,3408.6,3408.1,5.22424]
[1721384900594,1.23316809,3408.7,3408.4,1.057]
[1721384900995,1.23316809,3408.8,3408.5,2.4752]
[1721384901511,1.23316809,3408.8,3408.5,5.40897]
[1721384901902,1.53773031,3409.0,3408.5,5.40897]
[1721384901903,1.23316809,3408.9,3408.5,5.40897]
[1721384902134,1.23316809,3408.9,3408.5,3.415185]
[1721384902339,1.23316809,3408.9,3408.4,1.057]
[1721384902909,1.23316809,3408.9,3408.3,5.40914]
[1721384903229,1.23316809,3409.0,3408.4,2.93391]
[1721384903626,3.63496809,3408.9,3408.0,5.36415]
[1721384903828,6.56845809,3408.9,3408.0,6.42115]
[1721384904035,6.56845809,3408.9,3408.0,7.063265]
[1721384904839,2.93363,3408.8,3408.2,2.93406]
[1721384905040,1.23316809,3409.0,3408.3,2.4299]
[1721384905632,1.23316809,3409.0,3408.4,2.93385]
[1721384906341,4.16652809,3409.1,3408.4,2.93385]
[1721384906912,1.23316809,3409.1,3408.5,2.93383]
[1721384907245,1.23316809,3409.1,3408.6,1.057]
[1721384907543,4.16646809,3409.2,3408.6,1.057]
[1721384908040,2.93332,3409.1,3408.6,1.057]
[1721384908651,2.93315,3409.3,3408.7,5.42296]
[1721384910043,4.16623809,3409.4,3408.7,2.4893]
[1721384910613,0.45859115,3409.9,3408.8,1.057]
[1721384910614,1.23316809,3409.5,3408.8,1.057]
[1721384910815,2.9329,3409.6,3409.1,2.3443]
[1721384913348,2.93274,3409.8,3409.1,2.3443]
[1721384913349,2.93273,3409.8,3409.1,2.3443]
[1721384913554,2.93273,3409.8,3409.2,0.34013]
[1721384913755,2.93281,3409.7,3409.2,0.34013]
[1721384914058,2.93273,3409.8,3409.2,0.34013]
[1721384915123,1.23316809,3410.1,3409.2,0.34013]
[1721384915124,0.2946,3410.1,3409.6,1.057]
[1721384915325,0.2946,3410.1,3409.7,2.3609]
[1721384916155,0.2946,3410.0,3409.8,1.057]
[1721384916662,0.2946,3410.0,3409.9,2.93263]
[1721384916963,0.2946,3410.0,3409.8,1.057]
[1721384917167,2.93212,3410.5,3409.8,1.057]
[1721384917843,0.0533702,3410.6,3410.0,3.98954]
[1721384918225,2.9854002,3410.6,3410.0,1.057]
[1721384919056,2.93212,3410.5,3410.0,1.057]
[1721384919424,2.93212,3410.5,3410.1,2.4442]
[1721384919623,0.0533702,3410.6,3410.1,2.4442]
[1721384919860,0.0533702,3410.6,3410.2,1.700379]
[1721384920036,0.0533702,3410.6,3410.5,2.93212]
[1721384921128,0.0533702,3410.6,3410.2,1.700379]
[1721384921351,0.0533702,3410.6,3410.2,0.643379]
[1721384921352,2.9854102,3410.6,3410.2,0.643379]
[1721384922377,0.0533702,3410.6,3410.2,0.643379]
[1721384922534,0.0533702,3410.6,3410.3,0.7077119]
[1721384923072,0.0533702,3410.6,3410.2,3.98936]
[1721384923247,0.0533702,3410.6,3410.2,1.057]
[1721384924047,0.0533702,3410.6,3410.1,5.37665]
[1721384925089,0.0533702,3410.6,3410.2,2.93236]
[1721384925287,0.0533702,3410.6,3410.4,2.93218]
[1721384925490,0.0533702,3410.6,3410.5,0.586454]
[1721384926068,2.9854002,3410.6,3410.1,2.4442]
[1721384926280,2.93213,3410.5,3410.1,2.4442]
[1721384926458,0.0533702,3410.6,3410.1,2.4442]
[1721384928094,0.0533702,3410.6,3410.5,2.93212]
[1721384928305,0.0533702,3410.6,3410.5,5.34602]
[1721384928592,0.0533702,3410.6,3410.5,5.880622]
[1721384931957,0.0533702,3410.6,3410.5,2.948502]
[1721384932370,0.0533702,3410.6,3410.5,5.880622]
[1721384933100,0.0533702,3410.6,3410.5,0.534602]
[1721384933410,0.0533702,3410.6,3410.0,8.19143]
[1721384933554,0.0533702,3410.6,3409.8,3.92515816]
[1721384933955,2.93223,3410.4,3409.8,3.92515816]
[1721384934389,2.9854702,3410.6,3409.9,2.93262]
[1721384936306,2.9854702,3410.6,3409.8,3.92515816]
[1721384936307,0.0533702,3410.6,3410.0,2.93252]
[1721384936457,0.0533702,3410.6,3410.1,0.68576782]
[1721384936858,2.9854102,3410.6,3410.1,0.68576782]
[1721384937907,0.0533702,3410.6,3410.1,3.61816782]
[1721384938067,0.0533702,3410.6,3410.1,2.9324]
[1721384939020,2.4534,3410.5,3408.9,2.3006]
[1721384939221,2.4534,3410.5,3408.1,2.93417]
[1721384939222,2.93298,3409.5,3408.1,2.93417]
[1721384939434,2.93298,3409.5,3408.0,2.3006]
[1721384939435,2.4534,3410.1,3408.7,2.93366]
[1721384939701,2.93277,3409.8,3408.9,2.93343]
[1721384939931,2.93277,3409.8,3409.0,2.9334]
[1721384940074,2.9327,3409.9,3409.1,2.93331]
[1721384940279,2.93272,3409.8,3409.2,0.293331]
[1721384940478,2.93271,3409.9,3409.2,0.293331]
[1721384941479,2.93278,3409.8,3409.2,0.293331]
[1721384942229,2.93265,3409.9,3409.2,0.293331]
[1721384942436,5.38562,3410.4,3409.2,0.293331]
[1721384942634,2.93233,3410.3,3409.5,2.93297]
[1721384942797,2.93238,3410.2,3409.5,2.93297]
[1721384943332,2.93238,3410.2,3409.3,3.2719031]
[1721384943620,2.93246,3410.1,3409.4,2.93305]
[1721384943824,2.5823702,3410.6,3409.6,2.93281]
[1721384943825,2.93234,3410.3,3409.6,2.93281]
[1721384944138,2.93234,3410.3,3409.7,0.05864828]
[1721384944528,2.93234,3410.3,3409.6,2.93281]
[1721384944529,2.93241,3410.2,3409.6,2.93281]
[1721384945739,2.93213,3410.5,3409.5,5.96704831]
[1721384946082,2.93213,3410.5,3409.8,2.93272]
[1721384946402,2.93221,3410.4,3409.8,2.93272]
[1721384947128,2.93221,3410.4,3409.8,3.82269683]
[1721384947826,2.93221,3410.4,3409.8,0.88997683]
[1721384949139,2.93229,3410.3,3409.8,0.88997683]
[1721384949644,2.93229,3410.3,3409.5,5.96704831]
[1721384949928,2.93229,3410.3,3409.6,2.93289]
[1721384950600,2.93229,3410.3,3409.7,2.9328]
[1721384950782,2.93212,3410.5,3409.7,2.9328]
[1721384951398,0.0533702,3410.6,3409.5,6.12908831]
[1721384951592,0.0533702,3410.6,3409.6,0.64679214]
[1721384951920,0.0533702,3410.6,3409.7,2.93276]
[1721384952423,0.0533702,3410.6,3410.0,2.93254]
[1721384953591,0.0533702,3410.6,3410.1,2.93245]
[1721384953894,0.0533702,3410.6,3410.2,2.93237]
[1721384954091,0.0533702,3410.6,3410.2,3.518861]
[1721384955810,0.0533702,3410.6,3410.2,0.586491]
[1721384959661,0.0533702,3410.6,3410.2,3.518841]
[1721384959816,0.0533702,3410.6,3410.3,2.93228]
[1721384960017,0.0533702,3410.6,3410.4,2.93219]
[1721384962324,0.0533702,3410.6,3410.2,3.518821]
[1721384962511,2.9854202,3410.6,3410.1,2.4819]
[1721384964121,0.0533702,3410.6,3410.1,5.41435]
[1721384964521,0.0533702,3410.6,3410.1,2.4819]
[1721384965135,0.0533702,3410.6,3410.2,2.93237]
[1721384965556,0.0533702,3410.6,3410.3,2.93222]
[1721384965856,0.0533702,3410.6,3410.1,2.4819]
[1721384966033,0.0533702,3410.6,3410.1,6.565251]
[1721384966434,0.0533702,3410.6,3410.2,2.93236]
[1721384967030,0.0533702,3410.6,3410.3,2.93229]
[1721384967459,0.0533702,3410.6,3410.1,3.632841]
[1721384967622,0.0533702,3410.6,3410.2,2.93237]
[1721384968229,0.0533702,3410.6,3410.3,2.93228]
[1721384972354,0.0533702,3410.6,3410.4,2.9322]
[1721384976870,0.0533702,3410.6,3410.5,14.21279327]
[1721384977163,0.0533702,3410.6,3410.5,17.76279327]
[1721384977749,0.0533702,3410.6,3410.5,20.69491327]
[1721384977944,0.0533702,3410.6,3410.5,22.99478181]
[1721384979854,0.0533702,3410.6,3410.5,20.06266181]
[1721384981231,0.0533702,3410.6,3410.5,22.99478181]
[1721384981922,0.1461953,3412.1,3411.8,2.93094]
[1721384982076,0.1461953,3412.1,3412.0,2.93083]
[1721384983089,0.1461953,3412.1,3411.8,2.93098]
[1721384983630,0.1461953,3412.1,3412.0,2.93083]
[1721384984495,0.1461953,3412.1,3411.8,3.517192]
[1721384985425,0.1461953,3412.1,3411.6,6.02615]
[1721384985426,0.1461953,3412.1,3411.6,2.93112]
[1721384985578,0.1461953,3412.1,3411.2,5.5779]
[1721384985774,0.1461953,3412.1,3411.9,2.93089]
[1721384988827,0.1461953,3412.1,3411.7,2.93108]
[1721384989533,0.1461953,3412.1,3411.8,3.0]
[1721384989817,0.1461953,3412.1,3411.9,3.524018]
[1721384990021,0.1461953,3412.1,3412.0,3.0]
[1721384990334,0.1461953,3412.1,3411.8,5.93098]
[1721384990778,0.1461953,3412.1,3411.8,3.0]
[1721384990987,0.1461953,3412.1,3411.7,3.0]
[1721384991196,0.1461953,3412.1,3411.7,5.93103]
[1721384992119,0.1461953,3412.1,3411.3,2.528]
[1721384992120,2.3051,3412.0,3411.3,2.93137]
[1721384992338,5.23601,3412.0,3411.4,3.0]
[1721384993985,2.93108,3411.8,3411.2,2.93151]
[1721384994214,2.93108,3411.8,3411.3,3.0]
[1721384996477,5.23598,3412.0,3411.4,2.93127]
[1721384998139,2.93092,3411.9,3411.3,3.0]
[1721384999189,2.93101,3411.8,3411.3,3.0]
[1721384999528,2.93101,3411.8,3411.1,3.0]
[1721384999730,2.93101,3411.8,3411.1,5.93157]
[1721385001041,2.9311,3411.7,3411.1,5.93157]
[1721385002238,2.9311,3411.7,3411.1,7.471793]
[1721385002627,2.93099,3411.9,3411.2,2.9315]
[1721385002834,5.23596,3412.0,3411.3,5.93142]
[1721385003033,2.93092,3411.9,3411.3,3.0]
[1721385003235,2.93092,3411.9,3411.2,2.93151]
[1721385003420,2.93092,3411.9,3411.3,3.0]
[1721385003816,2.93101,3411.8,3411.3,3.0]
[1721385005831,2.9311,3411.7,3411.3,3.0]
[1721385006015,2.9311,3411.7,3410.8,2.93183]
[1721385006016,2.93132,3411.5,3411.1,3.0]
[1721385006347,2.93132,3411.5,3410.9,5.93177]
[1721385006538,2.93132,3411.5,3410.9,6.62417395]
[1721385006742,2.93132,3411.5,3410.9,3.0]
[1721385007260,2.93132,3411.5,3410.9,5.93177]
[1721385008711,2.93132,3411.5,3410.9,3.0]
[1721385009011,2.93132,3411.5,3410.8,2.93179]
[1721385009231,2.93132,3411.5,3410.9,3.0]
[1721385009948,5.22159,3411.7,3410.9,5.93177]
[1721385010334,5.22159,3411.7,3411.0,2.93168]
[1721385010539,2.93118,3411.6,3411.1,3.0]
[1721385013042,2.93161,3411.1,3410.4,2.93218]
[1721385013217,2.2769,3411.0,3410.5,3.0]
[1721385013412,2.93182,3410.9,3410.1,2.93243]
[1721385013616,2.93182,3410.9,3409.8,2.4687]
[1721385013617,2.93181,3410.9,3410.0,2.93254]
[1721385013854,2.50459,3411.0,3409.6,2.93286]
[1721385014069,2.93228,3410.4,3409.8,1.054]
[1721385014368,2.93248,3410.1,3409.4,5.40175]
[1721385014516,2.93248,3410.1,3409.5,1.054]
[1721385014717,2.93248,3410.1,3409.7,1.054]
[1721385016023,2.93248,3410.1,3409.5,2.93297]
[1721385016220,2.93232,3410.3,3409.6,2.93289]
[1721385016544,2.93232,3410.3,3409.7,2.93279]
[1721385018057,2.9324,3410.2,3409.5,2.93294]
[1721385018361,2.9324,3410.2,3409.6,3.0]
[1721385018798,2.9324,3410.2,3409.6,5.93287]
[1721385018977,1.23316809,3410.7,3410.0,2.93249]
[1721385019270,1.84068038,3411.2,3410.6,2.93197]
[1721385019271,5.27042,3411.2,3410.6,2.93197]
[1721385019433,2.3389,3411.2,3410.7,2.93193]
[1721385019840,2.3389,3411.2,3410.5,2.93212]
[1721385019841,5.27042,3411.2,3410.5,2.93212]
[1721385020020,5.27042,3411.2,3410.6,2.93202]
[1721385020970,2.3389,3411.2,3410.7,2.93194]
[1721385021322,3.68036809,3411.5,3410.7,0.586406]
[1721385021523,0.005,3412.4,3410.3,5.5699]
[1721385021524,2.93101,3411.8,3411.1,2.93152]
[1721385021736,2.93101,3411.8,3411.2,2.93151]
[1721385024785,2.4472,3411.9,3411.2,2.93151]
[1721385024984,2.4472,3411.9,3411.4,2.93134]
[1721385026458,0.1461953,3412.1,3411.4,2.93132]
[1721385026795,0.1461953,3412.1,3411.7,2.93108]
[1721385027443,5.29899,3412.0,3411.4,2.93134]
[1721385027642,2.3681,3412.0,3410.9,5.4909]
[1721385027861,0.1461953,3412.1,3411.6,2.93117]
[1721385028744,0.1461953,3412.1,3411.7,2.93108]
[1721385029395,0.1461953,3412.1,3411.8,2.931]
[1721385030492,0.1461953,3412.1,3411.5,2.93125]
[1721385030648,0.1461953,3412.1,3411.6,2.93117]
[1721385031370,0.1461953,3412.1,3411.4,2.93133]
[1721385031776,2.4841,3412.0,3411.0,5.93165]
[1721385032342,2.9314,3411.4,3410.7,2.93193]
[1721385032590,2.9314,3411.4,3410.8,2.93186]
[1721385033343,2.4841,3411.3,3410.8,2.93186]
[1721385033746,2.4841,3411.3,3410.9,2.93176]
[1721385034085,2.93125,3411.6,3411.0,2.93168]
[1721385034086,5.41535,3411.6,3411.0,2.93168]
[1721385035062,2.93102,3411.8,3411.2,2.93145]
[1721385035693,5.30865,3412.0,3411.4,2.93132]
[1721385035896,1.11522667,3411.9,3411.4,2.93132]
[1721385036883,4.04614667,3411.9,3411.2,2.93145]
[1721385037055,5.27931476,3411.9,3411.2,2.93145]
[1721385037445,2.34839476,3411.9,3411.0,2.93166]
[1721385037660,1.23316809,3411.9,3411.0,2.93166]
[1721385038075,1.23316809,3411.8,3411.0,2.93166]
[1721385038863,2.93118,3411.6,3411.0,2.93166]
[1721385039997,2.93123,3411.6,3410.6,2.93197]
[1721385040204,2.93143,3411.3,3410.7,3.0]
[1721385040854,2.93153,3411.2,3410.7,3.0]
[1721385041276,2.93153,3411.2,3410.4,2.93218]
[1721385041277,2.93169,3411.0,3410.4,2.93218]
[1721385041561,2.93183,3410.9,3410.5,3.0]
[1721385041889,2.93183,3410.9,3410.2,2.93236]
[1721385041890,2.93183,3410.9,3410.3,3.0]
[1721385043162,2.93183,3410.9,3410.3,5.93228]
[1721385043383,2.93183,3410.9,3410.3,7.045014]
[1721385044396,2.93155,3411.2,3410.4,2.93219]
[1721385044397,2.93162,3411.1,3410.4,2.93219]
[1721385044703,2.93162,3411.1,3410.5,3.0]
[1721385046005,2.93171,3411.0,3410.5,3.0]
[1721385046224,2.93171,3411.0,3410.3,4.112734]
[1721385046371,2.93155,3411.2,3410.4,2.93214]
[1721385046570,2.9316,3411.1,3410.5,3.0]
[1721385048108,4.16461809,3411.3,3410.5,3.0]
[1721385048109,2.93145,3411.3,3410.7,2.93194]
[1721385049318,4.16453809,3411.4,3410.7,2.93194]
[1721385049871,2.93145,3411.3,3410.7,2.93194]
[1721385050206,2.93145,3411.3,3410.6,2.93203]
[1721385050409,2.93152,3411.2,3410.6,2.93203]
[1721385051330,1.23316809,3411.4,3410.6,6.291158]
[1721385051614,6.56755809,3411.5,3410.8,2.93179]
[1721385051912,1.23316809,3411.5,3411.0,2.93167]
[1721385052127,1.23316809,3411.6,3411.0,2.93167]
[1721385052797,4.16433809,3411.6,3411.0,2.93167]
[1721385053005,2.93131,3411.5,3410.8,2.93179]
[1721385053432,2.93131,3411.5,3410.9,2.93177]
[1721385053798,1.23316809,3411.6,3411.0,2.93168]
[1721385054096,4.16433809,3411.6,3411.0,2.93168]
[1721385054725,1.23316809,3411.6,3411.1,2.93159]
[1721385054943,1.23316809,3411.6,3410.3,3.0]
[1721385054944,5.28241,3411.5,3410.8,2.93179]
[1721385055237,4.73425941,3411.6,3410.3,3.0]
[1721385055238,1.23316809,3411.6,3411.0,2.93167]
[1721385055548,1.23316809,3411.6,3410.4,8.39485]
[1721385055549,1.23316809,3411.6,3411.1,2.9316]
[1721385058304,4.16438809,3411.6,3410.9,2.93177]
[1721385058842,2.93135,3411.4,3410.9,2.93177]
[1721385059341,4.16438809,3411.6,3410.9,2.93177]
[1721385060041,4.16438809,3411.6,3410.9,3.51814]
[1721385061248,4.16438809,3411.6,3411.0,2.93168]
[1721385061456,4.16420809,3411.8,3411.1,5.28877]
[1721385062236,4.16420809,3411.8,3411.2,2.93151]
[1721385062453,1.23316809,3411.8,3411.3,2.99004448]
[1721385062677,1.23316809,3411.8,3411.4,2.93133]
[1721385063148,1.23316809,3411.8,3411.5,2.93123]
[1721385063475,1.23316809,3411.9,3411.6,2.93112]
[1721385063769,1.68199832,3412.1,3411.7,2.93108]
[1721385063770,0.1461953,3412.1,3411.7,2.93108]
[1721385063924,0.1461953,3412.1,3411.8,2.931]
[1721385064576,0.1461953,3412.1,3411.9,2.93091]
[1721385064743,0.1461953,3412.1,3412.0,3.517021]
[1721385067164,0.1461953,3412.1,3412.0,6.447851]
[1721385068525,0.1461953,3412.1,3412.0,9.447851]
[1721385071042,0.1461953,3412.1,3412.0,6.517021]
[1721385073424,0.1461953,3412.1,3412.0,9.447851]
[1721385073867,0.1461953,3412.1,3412.0,6.517021]
[1721385074170,0.1461953,3412.1,3412.0,9.447851]
[1721385074930,0.1461953,3412.1,3412.0,3.586191]
[1721385075159,0.1461953,3412.1,3412.0,0.586191]
[1721385075496,0.1461953,3412.1,3412.0,3.517021]
[1721385075658,0.1461953,3412.1,3412.0,9.447851]
[1721385086118,0.1461953,3412.1,3412.0,10.500851]
[1721385087520,0.1461953,3412.1,3412.0,14.140851]
[1721385087882,0.1461953,3412.1,3412.0,17.071681]
[1721385088292,0.1461953,3412.1,3412.0,19.524581]
[1721385089983,0.1461953,3412.1,3412.0,18.471581]
[1721385092329,0.1461953,3412.1,3412.0,21.402411]
[1721385093198,0.005,3412.4,3412.3,11.88171]
[1721385093395,0.005,3412.4,3412.3,22.5681531]
[1721385093927,0.005,3412.4,3412.3,25.4987231]
[1721385096798,1e-05,3412.4,3412.3,25.4987231]
[1721385097004,1e-05,3412.5,3412.4,14.11872]
[1721385097226,1e-05,3412.5,3412.4,20.75872]
[1721385097390,1e-05,3412.5,3412.4,20.74560562]
[1721385098220,1e-05,3412.5,3412.4,17.81512562]
[1721385098422,1e-05,3412.5,3412.4,15.41832562]
[1721385098931,1e-05,3412.5,3412.4,18.34880562]
[1721385099139,3.0,3414.8,3412.4,18.34880562]
[1721385099140,2.4483,3413.8,3413.6,2.92943]
[1721385099441,2.4483,3414.2,3413.6,2.85383]
[1721385099611,5.37725,3414.2,3413.6,2.85383]
[1721385100325,2.4483,3414.2,3413.8,2.92927]
[1721385100522,2.4483,3414.2,3413.9,2.92914]
[1721385100896,2.3195,3414.6,3414.0,2.9291]
[1721385101137,2.255,3414.2,3413.7,2.92935]
[1721385101546,2.255,3414.2,3413.8,2.92928]
[1721385102127,2.255,3414.2,3413.9,2.9292]
[1721385102330,2.255,3414.2,3414.0,2.92909]
[1721385103651,2.255,3414.2,3413.4,3.09]
[1721385103865,2.92917,3414.0,3413.5,3.0]
[1721385104158,0.518384,3414.1,3413.5,3.0]
[1721385104476,3.447424,3414.1,3413.5,3.0]